bitfinex/quotes_ETHUSD_20260121
["timestamp","ask_amount","ask_price","bid_price","bid_amount"]
[1768998948349,0.0008,2921.6,2919.8,0.96736068]
[1768998949164,0.90013039,2922.1,2919.6,0.128]
[1768998949350,0.90013039,2922.1,2919.7,0.96736068]
[1768998949555,0.94933039,2922.5,2920.1,0.96736068]
[1768998949735,0.94933039,2922.5,2920.3,0.96736068]
[1768998949922,0.94933039,2922.3,2920.4,0.567]
[1768998950117,0.94933039,2922.3,2920.5,0.96736068]
[1768998950545,0.78133039,2922.3,2920.6,0.96736068]
[1768998951522,0.78133039,2922.3,2920.8,3.42371952]
[1768998951765,0.78133039,2922.3,2920.8,6.84743904]
[1768998952280,0.78133039,2922.3,2920.8,3.42371952]
[1768998952434,0.78133039,2922.3,2920.9,0.96736068]
[1768998953073,0.73133039,2922.3,2920.9,0.96736068]
[1768998953627,0.73133039,2922.3,2921.0,11.23781598]
[1768998953865,0.0008,2922.6,2921.1,0.96736068]
[1768998954347,0.95013039,2922.6,2921.1,0.96736068]
[1768998954845,0.95013039,2922.6,2921.2,0.566]
[1768998955159,0.94933039,2922.5,2920.7,0.566]
[1768998955360,0.94933039,2922.5,2920.7,3.9898337]
[1768998955579,0.94933039,2922.3,2920.7,0.566]
[1768998955882,0.94933039,2922.3,2920.8,0.96736068]
[1768998956173,3.42246305,2922.6,2920.7,0.60021945]
[1768998956174,0.94933039,2922.2,2920.7,0.60021945]
[1768998956385,0.94933039,2922.2,2920.7,4.02402808]
[1768998956752,0.94933039,2922.2,2920.8,0.96736068]
[1768998957250,0.94933039,2922.2,2920.8,1.00159787]
[1768998957646,0.94933039,2922.2,2920.8,0.03423719]
[1768998957844,0.91555163,2922.1,2920.5,0.03424071]
[1768998958086,0.91555163,2922.1,2920.5,3.45829643]
[1768998958286,0.91555163,2922.1,2920.5,3.45824002]
[1768998958485,0.91555163,2922.1,2920.5,3.45829649]
[1768998958784,0.91555163,2922.1,2920.5,3.45825988]
[1768998958989,0.91555163,2922.1,2920.6,3.42395383]
[1768998959443,0.91555163,2922.1,2920.7,0.03423836]
[1768998959878,0.91555163,2922.1,2920.8,0.91084341]
[1768998960077,0.91555163,2922.1,2920.9,0.03423602]
[1768998960283,0.0008,2922.6,2920.4,0.03424188]
[1768998960284,0.91555163,2922.3,2920.4,0.03424188]
[1768998960444,0.91555163,2922.3,2920.7,3.42381452]
[1768998960645,0.91555163,2922.3,2920.8,0.03423719]
[1768998960887,0.91555163,2922.3,2920.8,0.9450806]
[1768998961056,0.91555163,2922.3,2920.8,0.566]
[1768998961253,0.91555163,2922.3,2920.8,0.82191923]
[1768998961565,0.91555163,2922.3,2919.7,3.42495559]
[1768998961566,0.91555163,2922.3,2920.6,0.91084341]
[1768998961771,0.91555163,2922.3,2920.7,4.02407511]
[1768998961971,0.91555163,2922.3,2920.7,7.44791186]
[1768998962149,0.91555163,2922.3,2920.8,0.91084341]
[1768998962349,0.91555163,2922.3,2920.9,0.03423602]
[1768998962779,0.91555163,2922.3,2920.7,3.45807511]
[1768998963086,0.91555163,2922.3,2921.0,0.91084341]
[1768998963258,0.91555163,2922.3,2921.0,0.94507826]
[1768998963583,0.91635163,2922.6,2921.0,0.94507826]
[1768998963784,0.91635163,2922.6,2921.2,0.91084341]
[1768998964081,0.91635163,2922.6,2921.4,0.91084341]
[1768998964791,0.91635163,2922.6,2921.4,0.60023016]
[1768998965152,0.0008,2922.6,2921.5,0.91084341]
[1768998965347,0.0008,2922.6,2921.7,0.91084341]
[1768998965783,0.0008,2922.6,2921.7,3.42266488]
[1768998965969,0.0008,2922.6,2921.7,0.566]
[1768998966173,0.91635163,2922.6,2921.7,0.566]
[1768998966371,0.91635163,2922.6,2920.8,0.002]
[1768998966584,0.91555163,2922.4,2920.8,0.002]
[1768998966798,0.91555163,2922.2,2920.8,0.002]
[1768998966950,0.91555163,2922.0,2920.8,0.002]
[1768998967153,0.91555163,2921.8,2920.8,0.002]
[1768998969700,0.94988579,2921.7,2920.8,0.002]
[1768998969990,0.91555163,2922.1,2920.8,0.002]
[1768998970298,0.91555163,2921.9,2920.8,0.002]
[1768998970602,0.91555163,2921.7,2920.8,0.002]
[1768998970971,0.91555163,2921.7,2920.5,0.002]
[1768998971153,0.91555163,2921.7,2919.9,0.91084341]
[1768998971353,0.91555163,2921.7,2919.9,0.94509115]
[1768998971579,0.91555163,2921.5,2919.9,0.94509115]
[1768998971984,0.91555163,2921.4,2919.9,0.03424774]
[1768998972192,0.91555163,2921.4,2919.9,3.45901421]
[1768998972552,0.91555163,2921.4,2919.9,0.03424774]
[1768998972759,0.91555163,2921.2,2919.4,3.42529321]
[1768998973005,0.43384554,2921.3,2920.0,0.91084341]
[1768998973159,0.43384554,2921.3,2919.9,6.84952025]
[1768998973160,0.91555163,2921.6,2920.2,0.91084341]
[1768998973488,0.03433416,2921.5,2920.4,0.91084341]
[1768998973674,0.91555163,2921.6,2920.4,0.91084341]
[1768998973855,0.91555163,2921.6,2920.3,0.03424305]
[1768998974056,0.91555163,2921.4,2920.1,3.42453231]
[1768998974256,0.91555163,2921.4,2920.2,3.42442106]
[1768998974454,0.91555163,2921.4,2919.9,1.47684341]
[1768998974684,0.91555163,2921.4,2920.1,3.42453542]
[1768998974880,0.91555163,2921.4,2920.0,0.03424657]
[1768998975080,0.91555163,2921.4,2920.0,3.45889522]
[1768998975464,0.91555163,2921.4,2920.1,3.42453219]
[1768998975673,0.91555163,2921.4,2920.0,0.94384186]
[1768998975868,0.91555163,2921.4,2920.3,0.002]
[1768998976459,0.91555163,2921.4,2920.3,0.03624305]
[1768998976705,0.91555163,2921.4,2920.3,0.002]
[1768998976887,0.94988579,2921.4,2920.3,0.002]
[1768998977166,0.96615737,2921.3,2920.0,0.002]
[1768998977471,3.45736674,2921.4,2920.0,0.002]
[1768998977472,0.96615737,2921.1,2920.0,0.002]
[1768998978081,0.96615737,2921.0,2919.2,0.90959529]
[1768998978284,0.96615737,2921.0,2919.2,0.03425596]
[1768998978480,0.96615737,2921.0,2919.4,3.42535663]
[1768998978680,0.96615737,2921.0,2919.5,3.4252076]
[1768998978865,0.96615737,2921.0,2919.4,0.9438489]
[1768998979395,0.96615737,2921.0,2919.4,4.36918584]
[1768998979693,0.96615737,2921.0,2919.4,0.9438489]
[1768998980092,0.96615737,2920.9,2919.3,0.03425478]
[1768998980396,0.96615737,2920.7,2919.4,3.42534347]
[1768998980783,0.96615737,2920.7,2919.3,3.42542502]
[1768998980985,0.96615737,2920.7,2919.2,0.94385125]
[1768998981714,0.96615737,2920.7,2919.1,3.45994572]
[1768998981894,0.96615737,2920.7,2919.1,0.03425713]
[1768998982070,0.96615737,2920.7,2919.0,4.02602296]
[1768998982265,0.96615737,2920.6,2919.0,4.02602296]
[1768998982466,0.96615737,2920.6,2919.0,0.566]
[1768998982777,0.96615737,2920.6,2919.0,3.99180937]
[1768998983182,0.96615737,2920.6,2919.0,7.45189843]
[1768998983485,0.96615737,2920.6,2919.0,3.99180937]
[1768998983659,1.00049153,2920.6,2919.0,4.02606767]
[1768998984088,0.96615737,2920.5,2919.0,0.6002583]
[1768998984289,0.96615737,2920.5,2918.9,0.03625948]
[1768998984489,0.96615737,2920.3,2918.9,0.03625948]
[1768998984696,0.96615737,2920.3,2919.0,6.85166034]
[1768998984996,0.96615737,2920.3,2919.1,0.94385242]
[1768998986087,0.96615737,2920.3,2919.2,3.42559605]
[1768998986276,0.96615737,2920.3,2919.3,0.03425478]
[1768998986906,0.96615737,2920.8,2919.3,0.94385007]
[1768998987421,0.96615737,2921.1,2919.3,0.94385007]
[1768998987707,0.03433416,2921.0,2919.3,0.94385007]
[1768998987880,0.96615737,2920.9,2919.3,0.94385007]
[1768998988223,1.00049153,2920.8,2919.5,0.90959529]
[1768998988371,1.00049153,2920.8,2919.5,0.94384773]
[1768998989273,0.001,2920.5,2919.5,0.94384773]
[1768998990476,0.001,2920.5,2919.6,3.42512672]
[1768998990704,0.001,2920.5,2919.5,4.36902822]
[1768998990900,0.001,2920.5,2919.5,0.94384773]
[1768998991105,0.001,2920.5,2919.5,4.36908527]
[1768998991306,0.001,2920.5,2919.6,0.90959529]
[1768998991876,0.001,2920.5,2919.8,0.90959529]
[1768998992216,0.001,2920.5,2919.9,0.94384303]
[1768998992910,0.001,2920.5,2919.9,4.36856786]
[1768998993125,0.001,2920.5,2919.9,0.94384303]
[1768998993722,0.96715737,2920.5,2919.3,0.91159529]
[1768998993888,0.96715737,2920.5,2919.3,0.002]
[1768998993889,0.96615737,2920.3,2919.3,0.002]
[1768998994507,1.00049153,2920.2,2919.3,0.002]
[1768998994714,0.96715737,2920.5,2919.3,0.002]
[1768998994915,0.001,2920.5,2919.3,0.94585007]
[1768998996710,0.001,2920.5,2919.4,3.42536137]
[1768998996991,0.001,2920.5,2919.5,0.94384773]
[1768998998893,0.001,2920.5,2919.6,3.42512672]
[1768998999137,0.001,2920.5,2919.3,0.002]
[1768998999138,0.96715737,2920.5,2919.3,0.002]
[1768998999288,0.96715737,2920.5,2919.5,3.42523251]
[1768998999492,0.96715737,2920.5,2919.4,0.566]
[1768998999493,0.03433416,2920.4,2919.4,0.566]
[1768998999694,1.00149153,2920.5,2919.4,0.566]
[1768999000015,0.96715737,2920.5,2919.5,3.42524061]
[1768999000221,0.001,2920.5,2919.5,4.36908834]
[1768999000912,0.001,2920.5,2919.6,0.90959529]
[1768999001415,0.001,2920.5,2919.5,0.03425244]
[1768999001731,0.001,2920.5,2919.5,3.45944317]
[1768999001932,0.001,2920.5,2919.6,0.90959529]
[1768999002226,0.001,2920.5,2919.7,0.03425009]
[1768999002522,0.001,2920.3,2919.7,0.03425009]
[1768999002689,0.001,2920.3,2919.6,0.94584655]
[1768999003122,0.001,2920.3,2919.6,7.79603465]
[1768999003421,0.001,2920.3,2919.6,4.33665667]
[1768999003630,0.001,2920.3,2919.7,0.90959529]
[1768999003926,0.001,2920.3,2919.8,0.03424892]
[1768999004419,0.001,2920.3,2919.8,0.94384421]
[1768999004621,0.001,2920.3,2919.8,0.90959529]
[1768999005017,0.03433416,2921.4,2920.0,4.33425282]
[1768999005018,0.96615737,2921.2,2920.0,4.33425282]
[1768999005198,1.00049153,2921.1,2920.0,4.33425282]
[1768999005549,1.00049153,2921.1,2920.0,4.36849939]
[1768999005834,0.98388054,2921.5,2920.1,1.03399791]
[1768999006046,0.98388054,2921.3,2920.1,1.03399791]
[1768999006331,0.98388054,2921.6,2920.1,1.03399791]
[1768999006529,1.0182147,2921.5,2920.1,1.03399791]
[1768999007232,1.11188054,2921.2,2919.6,0.002]
[1768999007404,0.98388054,2921.0,2919.6,0.002]
[1768999007607,0.98388054,2920.8,2919.6,0.002]
[1768999007832,0.98388054,2920.6,2919.3,0.002]
[1768999008011,0.98388054,2920.4,2919.3,0.002]
[1768999008339,0.98388054,2920.4,2919.4,3.4253573]
[1768999008631,0.98388054,2920.4,2919.3,3.42740385]
[1768999009234,0.98388054,2920.4,2919.3,0.002]
[1768999011141,0.98388054,2920.4,2919.3,1.01879699]
[1768999011300,0.98388054,2920.4,2919.4,4.42511388]
[1768999011499,0.98388054,2920.4,2919.5,0.01704213]
[1768999012300,0.98388054,2920.4,2919.4,0.99975251]
[1768999012529,3.99135739,2921.1,2919.3,3.44440849]
[1768999012530,0.98388054,2920.2,2919.3,0.002]
[1768999014742,0.98388054,2920.2,2919.3,0.01904683]
[1768999014932,0.98388054,2920.2,2919.3,0.002]
[1768999015603,0.98488054,2920.2,2919.3,0.002]
[1768999015939,0.98488054,2920.2,2919.3,0.568]
[1768999016147,0.001,2920.2,2919.3,1.56775251]
[1768999016358,0.001,2920.2,2919.4,0.99975251]
[1768999018634,0.94505211,2920.2,2919.3,0.568]
[1768999019148,0.94405211,2920.0,2919.3,0.002]
[1768999021010,0.94505211,2920.2,2919.3,0.002]
[1768999021444,0.98685886,2920.1,2919.3,0.002]
[1768999021647,0.94405211,2920.1,2919.3,0.002]
[1768999021851,0.001,2920.2,2919.3,1.00179605]
[1768999022149,0.05,2921.7,2919.3,1.00179605]
[1768999022150,3.88,2921.2,2919.4,0.99979429]
[1768999022350,4.56739438,2922.5,2919.4,0.98274805]
[1768999022351,0.94405211,2921.6,2919.4,0.98274805]
[1768999022649,0.94405211,2921.9,2919.6,0.98274805]
[1768999022854,0.94405211,2921.9,2919.8,0.98274805]
[1768999023016,0.04278184,2921.8,2920.0,0.98274805]
[1768999023217,0.94405211,2921.7,2919.5,0.98274805]
[1768999023442,0.94405211,2921.5,2919.7,0.98274805]
[1768999023640,0.94405211,2921.5,2919.9,0.98274805]
[1768999023944,0.94405211,2922.0,2919.9,0.99976906]
[1768999024140,0.94405211,2922.0,2920.0,0.98274805]
[1768999024339,0.98683249,2921.9,2920.0,0.98274805]
[1768999024944,0.94405211,2922.2,2920.0,0.98274805]
[1768999025245,0.94405211,2922.0,2920.2,0.98274805]
[1768999025444,0.04278038,2921.9,2920.2,0.98274805]
[1768999025646,0.98683249,2921.9,2920.5,0.98274805]
[1768999025836,0.98683249,2921.9,2920.6,1.54874805]
[1768999027053,0.001,2921.6,2920.6,1.54874805]
[1768999027547,0.128,2922.5,2920.6,1.54874805]
[1768999027548,0.77471311,2922.5,2921.1,0.98274805]
[1768999027747,0.0008,2922.6,2921.3,0.98274805]
[1768999029558,0.0008,2922.6,2921.5,0.98274805]
[1768999029717,0.0008,2922.6,2921.7,0.98274805]
[1768999030847,0.94485211,2922.6,2921.4,0.566]
[1768999031054,0.94405211,2922.4,2921.4,0.566]
[1768999031839,0.94405211,2922.4,2921.0,0.98274805]
[1768999032046,0.94405211,2922.2,2921.1,3.98936551]
[1768999032243,0.94405211,2922.2,2921.1,0.566]
[1768999032443,0.94405211,2922.2,2921.2,3.42318928]
[1768999032642,0.94405211,2922.5,2921.4,0.98274805]
[1768999032952,0.0008,2922.6,2921.5,0.98274805]
[1768999033322,0.0008,2922.6,2921.3,0.01698115]
[1768999033323,0.94485211,2922.6,2921.3,0.01698115]
[1768999033529,0.9868237,2922.5,2921.3,0.01698115]
[1768999033724,0.9868237,2922.5,2921.2,0.9997333]
[1768999034753,0.9868237,2922.5,2921.4,0.01698526]
[1768999035754,4.8668237,2922.5,2921.4,0.01698526]
[1768999036158,4.82405211,2922.5,2921.4,4.42618673]
[1768999037038,4.82405211,2922.5,2921.4,7.84920309]
[1768999037354,4.82405211,2922.5,2921.4,4.40920147]
[1768999037656,4.82405211,2922.5,2921.4,1.0032637]
[1768999038051,4.82405211,2922.5,2921.4,4.42627705]
[1768999038361,0.0008,2922.6,2921.1,0.98628077]
[1768999038362,0.95659574,2922.4,2921.1,0.98628077]
[1768999038550,0.95659574,2922.4,2921.1,1.55228077]
[1768999038751,0.04277306,2922.4,2921.5,3.42289919]
[1768999038951,0.0008,2922.6,2921.5,3.42289919]
[1768999038952,0.91462268,2922.6,2921.5,0.01698235]
[1768999039149,0.91382268,2922.4,2921.3,0.98628077]
[1768999039458,0.91382268,2922.2,2921.1,0.566]
[1768999039659,0.0008,2922.6,2920.8,0.002]
[1768999039660,0.91382268,2922.0,2920.8,0.002]
[1768999039958,0.91382268,2922.0,2920.8,3.42571556]
[1768999040125,0.91382268,2922.0,2920.8,4.41199633]
[1768999040555,0.91382268,2922.0,2920.9,0.98628077]
[1768999040734,0.91382268,2922.3,2921.1,0.98628077]
[1768999040933,0.91382268,2922.3,2921.2,1.00327072]
[1768999042252,0.91382268,2922.3,2921.2,4.42648386]
[1768999042567,0.04357013,2922.6,2921.3,0.98628077]
[1768999042568,0.91462268,2922.6,2921.3,0.98628077]
[1768999042765,0.91462268,2922.6,2921.4,1.0032637]
[1768999043644,0.04277159,2922.5,2921.4,1.0032637]
[1768999043846,0.04277159,2922.5,2921.5,0.566]
[1768999044067,0.04277159,2922.5,2921.0,3.9894377]
[1768999044068,0.91382268,2922.4,2921.0,3.9894377]
[1768999044362,0.91382268,2922.2,2921.0,3.98943475]
[1768999044530,0.04277745,2922.1,2921.0,1.55228077]
[1768999044955,0.04277745,2922.1,2921.0,4.9756802]
[1768999045525,0.91382268,2922.2,2921.1,1.00327482]
[1768999046165,0.04277745,2922.1,2921.1,1.00327482]
[1768999046465,0.91382268,2922.2,2921.1,4.42661202]
[1768999046828,0.91382268,2922.0,2920.8,0.002]
[1768999047157,0.95660159,2922.0,2920.4,0.98628077]
[1768999047760,0.95660159,2922.0,2920.5,3.42606556]
[1768999047969,0.95660159,2922.0,2920.5,0.0190046]
[1768999048171,0.91382268,2921.8,2920.5,0.002]
[1768999048730,0.91382268,2921.7,2920.5,0.002]
[1768999050264,0.91382268,2922.0,2920.7,0.98628077]
[1768999050435,0.91382268,2922.0,2920.8,0.0170005]
[1768999050768,0.91382268,2921.8,2920.5,0.002]
[1768999051165,0.91382268,2921.6,2920.5,0.002]
[1768999051567,0.91382268,2921.4,2919.7,4.41121724]
[1768999051794,0.91382268,2921.4,2919.7,4.40921915]
[1768999051974,0.91382268,2921.2,2919.7,4.40921915]
[1768999053105,0.91382268,2921.2,2919.8,0.98628077]
[1768999053306,0.91382268,2921.2,2919.6,3.4251226]
[1768999053604,0.91382268,2921.2,2919.8,0.98628077]
[1768999053804,0.47938227,2921.3,2919.8,0.98628077]
[1768999054459,0.47938227,2921.3,2920.0,0.98628077]
[1768999054655,0.95660891,2921.5,2920.0,0.98628077]
[1768999054956,0.91382268,2921.3,2920.0,0.98628077]
[1768999057171,0.91382268,2921.3,2920.1,7.83536127]
[1768999058993,4.79382268,2921.3,2920.2,0.98628077]
[1768999059170,0.91382268,2921.2,2920.2,0.98628077]
[1768999059365,0.47938227,2921.1,2920.2,4.41069683]
[1768999059771,0.47938227,2921.1,2920.3,0.98628077]
[1768999063266,0.48038227,2921.1,2920.3,0.98628077]
[1768999063465,0.48038227,2921.1,2920.3,4.41057974]
[1768999064496,0.001,2921.1,2920.4,0.98628077]
[1768999064906,3.88,2921.3,2920.5,0.98628077]
[1768999065734,3.88,2921.3,2920.7,0.90037179]
[1768999065944,3.88,2921.3,2920.8,0.566]
[1768999066410,3.88,2921.3,2920.9,0.90037179]
[1768999066613,1.00365837,2921.8,2920.8,0.566]
[1768999066782,0.96087653,2921.8,2920.8,0.566]
[1768999066999,0.96087653,2921.8,2920.8,1.46637179]
[1768999067495,0.96087653,2921.8,2920.8,0.566]
[1768999067717,0.96087653,2921.6,2920.8,0.566]
[1768999069012,0.96087653,2921.4,2920.2,0.90037179]
[1768999069199,0.96087653,2921.2,2920.1,3.9905095]
[1768999069398,0.96087653,2921.0,2920.1,3.9905095]
[1768999069824,0.96087653,2921.0,2920.1,3.99053214]
[1768999070518,0.96087653,2921.0,2920.1,0.566]
[1768999070717,0.96087653,2921.0,2920.1,3.99053283]
[1768999071429,0.96087653,2921.0,2920.1,4.89090462]
[1768999071923,0.96087653,2921.0,2920.2,0.90037179]
[1768999072232,0.04278623,2921.5,2920.2,0.90037179]
[1768999072410,0.96087653,2921.4,2920.2,0.90037179]
[1768999072611,1.00366569,2921.3,2920.2,0.90037179]
[1768999073628,1.00366569,2921.3,2920.1,0.566]
[1768999073827,1.00366569,2921.3,2920.1,3.99053046]
[1768999074449,1.00366569,2921.3,2920.1,0.566]
[1768999074619,1.00366569,2921.3,2920.1,3.99053916]
[1768999074802,1.00366569,2921.3,2920.4,0.002]
[1768999075003,0.001,2920.8,2920.4,0.002]
[1768999079013,0.001,2920.8,2920.4,0.91931048]
[1768999080254,0.001,2920.8,2920.4,0.002]
[1768999081448,0.001,2920.8,2920.4,0.91931048]
[1768999081751,2.80062819,2921.2,2920.4,0.002]
[1768999082048,2.80062819,2921.2,2920.5,0.91731048]
[1768999082415,2.80062819,2921.2,2920.7,0.91731048]
[1768999082644,2.80062819,2921.2,2920.8,0.566]
[1768999083956,2.80062819,2921.2,2920.8,1.48331048]
[1768999084327,2.80062819,2921.2,2920.9,3.42360231]
[1768999084854,2.80062819,2921.2,2920.8,4.90696846]
[1768999085032,0.97254558,2921.7,2920.9,0.91731048]
[1768999085354,0.97254558,2921.7,2920.8,7.4133775]
[1768999085852,0.97254558,2921.7,2920.8,8.33068798]
[1768999086236,0.97254558,2921.7,2920.9,0.91731048]
[1768999086438,0.97254558,2922.2,2921.1,0.91731048]
[1768999087281,0.97254558,2922.5,2921.1,0.91731048]
[1768999087732,0.97254558,2922.7,2921.1,0.91731048]
[1768999088326,0.97254558,2922.7,2921.3,0.91731048]
[1768999090466,0.97334558,2922.6,2921.5,0.91731048]
[1768999090652,0.97334558,2922.6,2921.6,1.48331048]
[1768999090834,0.97334558,2922.6,2921.7,0.91731048]
[1768999091275,0.0008,2922.6,2921.7,0.91731048]
[1768999091424,0.0008,2923.6,2921.7,0.91731048]
[1768999091630,0.97254558,2923.5,2921.7,0.91731048]
[1768999092458,0.97254558,2923.5,2921.9,0.91731048]
[1768999093175,0.97254558,2923.3,2921.8,3.42254774]
[1768999093329,0.97254558,2923.2,2922.0,0.91731048]
[1768999093524,0.97254558,2923.0,2922.1,0.91731048]
[1768999094552,0.97254558,2923.0,2921.9,0.566]
[1768999094553,0.97254558,2923.0,2922.2,7.76146898]
[1768999094747,0.97254558,2923.0,2922.2,4.33938973]
[1768999095069,0.97254558,2922.8,2921.9,3.98842854]
[1768999095369,0.0008,2923.6,2921.9,4.97051028]
[1768999095370,0.97254558,2923.5,2921.9,4.97051028]
[1768999095548,0.98528313,2923.3,2921.9,1.54809376]
[1768999095746,0.98528313,2923.1,2921.9,1.54809376]
[1768999095963,0.98528313,2922.9,2921.9,3.9883758]
[1768999096282,0.98528313,2922.9,2921.9,3.9884261]
[1768999096589,3.42126136,2923.6,2921.9,3.9884261]
[1768999096590,0.98528313,2922.7,2921.9,0.566]
[1768999096747,0.98528313,2922.5,2921.9,0.566]
[1768999097155,0.98528313,2922.3,2921.5,3.988827]
[1768999097468,0.98528313,2922.3,2921.5,0.566]
[1768999097957,0.04276135,2923.2,2921.9,3.42238974]
[1768999098159,0.98528313,2923.1,2921.8,3.42254768]
[1768999098466,0.98528313,2922.9,2921.7,0.98209376]
[1768999098664,0.98528313,2922.9,2921.8,7.82718924]
[1768999099055,0.98528313,2922.9,2921.9,0.98209376]
[1768999099778,0.98628313,2922.9,2921.9,0.98209376]
[1768999100172,0.98628313,2922.9,2921.8,3.42254774]
[1768999100379,0.98628313,2922.9,2921.8,6.84509548]
[1768999100679,0.98628313,2922.9,2921.8,0.98209376]
[1768999101286,0.001,2922.9,2921.8,0.98209376]
[1768999102068,0.98628313,2922.9,2921.8,0.98209376]
[1768999102269,0.001,2922.9,2921.8,0.98209376]
[1768999102680,0.001,2922.9,2922.0,0.98209376]
[1768999103701,0.98528313,2923.5,2922.0,0.98209376]
[1768999104412,0.0008,2923.6,2922.0,0.98209376]
[1768999104590,0.0008,2923.6,2922.2,0.98209376]
[1768999104787,0.0008,2923.6,2922.1,10.26658908]
[1768999104788,0.98608313,2923.6,2922.4,0.98209376]
[1768999104971,0.04274527,2924.3,2922.3,0.566]
[1768999104972,0.81594412,2924.0,2922.5,0.98209376]
[1768999105871,0.98528313,2924.5,2922.5,0.98209376]
[1768999106072,0.98528313,2924.3,2922.5,0.98209376]
[1768999106872,0.98528313,2924.3,2922.7,0.98209376]
[1768999107294,0.98528313,2924.1,2922.4,0.98209376]
[1768999107593,0.98528313,2923.9,2922.5,7.40943658]
[1768999107783,0.98528313,2923.7,2922.5,8.39153034]
[1768999108383,0.98528313,2923.5,2922.5,0.566]
[1768999108583,0.98528313,2923.5,2922.2,0.98209376]
[1768999108783,0.98528313,2923.5,2922.3,0.566]
[1768999109088,0.98528313,2923.5,2922.4,3.42173838]
[1768999109286,0.98528313,2923.5,2922.3,0.566]
[1768999109586,0.98528313,2923.3,2921.9,0.566]
[1768999109793,0.98528313,2923.1,2921.9,0.566]
[1768999109991,0.98528313,2923.1,2921.1,0.98209376]
[1768999110200,0.98528313,2923.1,2921.6,3.42270634]
[1768999110501,0.98528313,2923.1,2921.3,0.98209376]
[1768999110797,0.98528313,2923.1,2921.5,0.566]
[1768999111273,0.98528313,2923.0,2921.5,0.566]
[1768999111765,0.98528313,2923.0,2921.9,0.002]
[1768999111962,0.98528313,2922.8,2921.9,0.002]
[1768999112364,0.98528313,2922.8,2921.6,0.002]
[1768999112609,0.98528313,2922.8,2921.5,1e-08]
[1768999112902,0.98528313,2922.6,2921.5,1e-08]
[1768999113692,0.98528313,2922.6,2921.0,0.98209376]
[1768999113891,0.98528313,2922.6,2920.9,3.42360231]
[1768999114206,0.98528313,2922.5,2920.7,4.40588522]
[1768999114380,0.98528313,2922.5,2920.8,3.42370759]
[1768999114703,0.98528313,2922.5,2920.8,6.84742711]
[1768999115205,0.98528313,2922.5,2920.9,0.98209376]
[1768999115498,0.98528313,2922.5,2921.0,0.98209376]
[1768999117182,0.98528313,2922.5,2921.2,0.98209376]
[1768999118483,4.94640209,2924.1,2921.2,0.98209376]
[1768999118484,0.98528313,2923.0,2921.2,0.98209376]
[1768999118892,0.98528313,2923.8,2921.2,0.98209376]
[1768999119211,0.98528313,2923.6,2921.4,0.98209376]
[1768999119413,0.98528313,2923.6,2921.6,0.98209376]
[1768999119615,0.98528313,2923.6,2921.3,13.69253412]
[1768999119616,0.98528313,2923.4,2921.8,0.98209376]
[1768999121207,0.98528313,2923.4,2922.0,0.98209376]
[1768999122219,0.98528313,2923.2,2921.4,0.98209376]
[1768999122425,0.98528313,2923.0,2921.5,0.98209376]
[1768999122584,0.98528313,2923.0,2921.3,0.566]
[1768999122585,0.98528313,2922.8,2921.3,0.98209376]
[1768999122791,0.98528313,2922.6,2921.4,0.566]
[1768999123004,0.98528313,2922.6,2921.6,3.42269027]
[1768999123206,0.98528313,2923.2,2921.7,0.98209376]
[1768999123418,0.98528313,2923.0,2921.5,3.4228854]
[1768999123723,0.98528313,2922.8,2921.5,0.98209376]
[1768999123906,0.98528313,2922.8,2921.6,4.40481301]
[1768999124222,0.98528313,2922.8,2921.6,4.40481613]
[1768999124735,0.98528313,2922.8,2921.7,3.42266191]
[1768999125032,0.98528313,2922.8,2921.6,4.40480481]
[1768999125213,0.98528313,2922.8,2921.7,3.4226512]
[1768999127428,0.98528313,2922.8,2921.6,4.97081795]
[1768999127730,0.98528313,2922.8,2921.7,0.99153568]
[1768999127929,0.98528313,2922.8,2921.8,0.99153568]
[1768999128140,0.93374506,2923.1,2921.8,0.99153568]
[1768999128346,0.001,2923.2,2921.8,0.99153568]
[1768999128512,0.93474506,2923.2,2921.8,0.99153568]
[1768999129211,0.93374506,2923.0,2921.9,0.566]
[1768999129547,0.93474506,2923.2,2922.1,0.99153568]
[1768999129761,0.93374506,2923.0,2921.9,0.566]
[1768999130037,0.93374506,2923.1,2922.0,0.99153568]
[1768999131027,0.001,2923.2,2922.0,0.99153568]
[1768999131520,0.93474506,2923.2,2922.1,4.41373204]
[1768999133545,0.93474506,2923.2,2922.1,0.99153568]
[1768999134058,0.93374506,2923.0,2921.7,0.566]
[1768999134221,0.93374506,2922.8,2921.9,3.42237346]
[1768999134651,0.93374506,2922.8,2922.0,3.42222944]
[1768999134837,0.93374506,2922.8,2921.9,3.42243032]
[1768999135044,0.93374506,2922.8,2921.9,0.99153568]
[1768999135218,0.93374506,2922.8,2921.7,3.98863762]
[1768999135536,0.93374506,2922.8,2921.8,3.42253046]
[1768999135777,0.93374506,2922.8,2921.5,3.42282635]
[1768999135934,0.93374506,2922.8,2921.7,0.566]
[1768999136119,0.93374506,2922.8,2921.7,3.98865655]
[1768999137072,0.93374506,2922.8,2921.7,0.566]
[1768999137279,0.93374506,2922.8,2921.5,0.99153568]
[1768999137280,0.93374506,2922.6,2921.4,3.42300846]
[1768999137449,0.93374506,2922.6,2921.5,3.98881741]
[1768999137952,0.93374506,2922.6,2921.5,0.566]
[1768999138372,0.93374506,2922.6,2921.5,3.98884816]
[1768999138588,0.93374506,2922.6,2921.5,0.566]
[1768999139089,0.93374506,2922.6,2921.5,3.98889382]
[1768999139682,0.93374506,2922.6,2921.5,4.90572043]
[1768999139887,0.93374506,2922.6,2921.5,8.32861962]
[1768999140048,0.93374506,2922.6,2921.6,0.91682661]
[1768999140584,0.93374506,2922.6,2921.3,0.91682661]
[1768999140793,0.93374506,2922.6,2921.2,0.002]
[1768999141353,0.93374506,2922.6,2921.3,3.4230615]
[1768999141691,0.93374506,2922.6,2921.2,0.002]
[1768999141842,0.97601616,2922.5,2921.2,0.002]
[1768999142543,0.97601616,2922.5,2921.2,0.91882661]
[1768999143200,0.97601616,2922.9,2921.2,0.91882661]
[1768999144156,0.97601616,2922.7,2921.2,4.34207732]
[1768999144339,0.97601616,2922.5,2921.2,4.34207732]
[1768999144783,0.97601616,2922.5,2921.3,0.91682661]
[1768999145095,0.97601616,2922.5,2920.5,0.002]
[1768999145383,0.97601616,2922.5,2920.5,4.34284355]
[1768999145542,0.97601616,2922.5,2920.5,0.91882661]
[1768999145744,0.97601616,2922.3,2920.5,0.91882661]
[1768999146039,3.42198456,2922.3,2920.5,4.34289537]
[1768999146243,0.97601616,2922.2,2920.5,4.34289537]
[1768999146542,0.97601616,2922.0,2920.5,4.34289537]
[1768999146971,0.97601616,2922.0,2920.5,0.91882661]